bitfinex/quotes_ETHUSD_20241223
["timestamp","ask_amount","ask_price","bid_price","bid_amount"]
[1734915298693,1.26203746,3255.2,3255.0,1.6438]
[1734915299022,1.26203746,3255.2,3255.1,8.98]
[1734915299248,0.90087938,3255.9,3255.2,13.6958]
[1734915299423,0.90087938,3255.9,3255.2,10.6238]
[1734915300530,3.0,3256.3,3255.3,8.98]
[1734915300744,3.0,3256.3,3255.3,10.04238]
[1734915300957,6.07098,3256.3,3255.3,10.04238]
[1734915301162,3.0712,3256.1,3255.3,8.98]
[1734915301529,3.0,3256.5,3255.3,9.60573498]
[1734915301764,3.0,3256.5,3255.3,8.98]
[1734915301765,4.67746,3256.2,3255.3,8.98]
[1734915301967,3.0,3256.1,3255.3,8.98]
[1734915302162,3.07155,3255.7,3255.2,1.6438]
[1734915302346,3.07191,3255.3,3254.5,1.5895]
[1734915302533,3.07202,3255.2,3254.5,1.5895]
[1734915302720,3.07211,3255.1,3254.5,1.5895]
[1734915302923,1.5114,3255.4,3254.5,1.5895]
[1734915303226,3.07218,3255.1,3254.5,1.5895]
[1734915303449,0.307218,3255.1,3254.5,1.5895]
[1734915303649,1.5114,3255.4,3254.5,1.5895]
[1734915303860,3.0723,3254.9,3254.1,8.98]
[1734915304068,3.0,3255.2,3254.1,8.98]
[1734915304235,3.07238,3254.8,3254.1,8.98]
[1734915304951,3.0,3255.2,3254.1,8.98]
[1734915305148,3.0725,3254.7,3254.1,8.98]
[1734915306998,3.07237,3254.9,3254.1,8.98]
[1734915307170,0.95491148,3255.1,3254.1,8.98]
[1734915307575,3.07257,3254.6,3254.1,8.98]
[1734915309305,3.07257,3254.6,3254.0,1.5899]
[1734915309810,0.95491148,3255.1,3254.0,1.5899]
[1734915310025,3.07239,3254.8,3254.0,1.5899]
[1734915311765,0.70270015,3255.0,3254.0,1.5899]
[1734915311964,3.07201,3255.2,3254.0,1.5899]
[1734915312465,3.07201,3255.2,3254.0,10.5699]
[1734915312917,3.07232,3254.9,3254.0,10.5699]
[1734915313210,3.07257,3254.6,3254.0,10.5699]
[1734915313404,3.0,3255.2,3254.0,10.5699]
[1734915313602,3.07229,3254.9,3254.0,10.5699]
[1734915313834,3.34772048,3255.2,3254.0,10.5699]
[1734915314008,3.07239,3254.8,3254.0,10.5699]
[1734915315310,3.07239,3254.8,3254.0,1.5899]
[1734915315495,3.0,3255.6,3254.1,0.15899]
[1734915315681,0.55,3255.5,3254.0,1.5899]
[1734915315863,3.07248,3254.7,3254.0,1.5899]
[1734915316364,1.6296,3255.0,3254.0,1.5899]
[1734915316565,3.0,3254.7,3253.6,1.5165]
[1734915316765,3.07309,3254.1,3252.9,1.5165]
[1734915317013,3.0,3254.3,3253.0,1.5165]
[1734915317309,3.0,3254.3,3253.2,1.6217]
[1734915317465,3.07326,3253.9,3253.2,1.6217]
[1734915317687,3.07331,3253.9,3253.2,1.6217]
[1734915317883,3.07331,3253.9,3253.2,1.78387]
[1734915318087,1.6296,3254.6,3253.2,1.78387]
[1734915318302,3.0,3254.4,3253.2,1.78387]
[1734915318531,3.0,3254.3,3253.2,1.78387]
[1734915318682,3.07253,3254.7,3253.3,1.5115]
[1734915319030,3.07259,3254.6,3253.5,1.5115]
[1734915319234,3.0,3254.9,3253.5,1.5115]
[1734915319437,3.07276,3254.4,3253.5,1.5115]
[1734915319789,3.07314,3254.0,3253.5,2.12727172]
[1734915320205,3.07294,3254.3,3253.5,2.12727172]
[1734915320608,3.07294,3254.3,3253.5,1.5115]
[1734915321407,3.0,3254.7,3253.5,1.5115]
[1734915321607,3.07276,3254.4,3253.5,1.73979901]
[1734915322228,3.07286,3254.3,3253.5,1.73979901]
[1734915323351,0.64772048,3254.6,3253.5,1.73979901]
[1734915323511,3.07242,3254.8,3253.5,1.73979901]
[1734915323884,3.07249,3254.7,3253.6,8.98]
[1734915324143,1.25958245,3255.2,3253.7,1.5131]
[1734915324303,3.07226,3255.0,3253.8,4.5131]
[1734915324510,3.07226,3255.0,3253.9,0.758649]
[1734915324750,4.33161245,3255.2,3254.0,1.5131]
[1734915324919,3.07213,3255.1,3254.0,1.5131]
[1734915325547,3.07238,3254.9,3254.0,1.5131]
[1734915325718,2.77648245,3255.6,3254.1,0.60258461]
[1734915325917,3.07228,3255.0,3254.1,0.60258461]
[1734915326249,3.07205,3255.2,3254.1,0.60258461]
[1734915326402,3.0721,3255.1,3254.1,0.60258461]
[1734915327050,0.93252273,3255.5,3254.1,0.60258461]
[1734915327051,3.07191,3255.3,3254.2,10.5223]
[1734915327347,3.07169,3255.6,3254.4,1.5423]
[1734915327531,1.25958245,3255.7,3254.7,1.5276]
[1734915328099,3.07146,3255.8,3254.7,1.5276]
[1734915328719,3.07146,3255.8,3255.1,0.62915292]
[1734915329660,6.54801482,3256.5,3255.2,1.628]
[1734915329828,3.07129,3256.0,3255.2,1.628]
[1734915330020,3.07144,3255.8,3255.2,1.628]
[1734915330217,3.47720482,3255.7,3254.9,10.5986]
[1734915330512,3.07221,3255.0,3254.5,1.6186]
[1734915330716,3.07239,3254.8,3254.5,1.6186]
[1734915330914,3.07259,3254.6,3254.0,1.5354]
[1734915331115,3.07238,3254.9,3254.0,2.50036797]
[1734915331552,3.0721,3255.1,3254.0,2.50036797]
[1734915331754,4.5757,3255.6,3254.2,1.5678]
[1734915331949,3.07188,3255.4,3254.2,1.5678]
[1734915332171,3.0,3255.3,3254.4,1.5678]
[1734915332561,3.07188,3255.4,3254.4,1.5678]
[1734915332870,6.54875482,3255.7,3254.4,6.07275]
[1734915333071,1.25958245,3256.0,3254.5,1.5678]
[1734915333371,3.07175,3255.5,3254.9,1.639]
[1734915333540,1.25958245,3256.0,3254.9,1.639]
[1734915333737,1.6165,3255.8,3254.9,1.639]
[1734915333973,3.07201,3255.2,3254.9,1.639]
[1734915334263,3.07219,3255.0,3254.6,1.639]
[1734915334476,0.307219,3254.9,3254.1,8.98]
[1734915334682,3.07238,3254.8,3254.2,1.5193]
[1734915334874,3.07285,3254.3,3253.9,1.5193]
[1734915335978,3.0,3254.8,3253.9,1.5193]
[1734915336466,1.5388,3255.1,3253.9,1.5193]
[1734915337175,3.07219,3255.0,3253.9,1.5193]
[1734915337331,3.07292,3254.3,3253.9,1.5193]
[1734915338870,3.07251,3254.7,3253.9,1.5193]
[1734915339087,0.461099,3254.9,3253.9,1.5193]
[1734915339249,3.07314,3254.0,3253.9,1.5193]
[1734915339451,3.07314,3254.0,3252.4,1.278394]
[1734915339452,0.307314,3254.0,3253.1,1.6123]
[1734915339679,3.07378,3253.4,3253.1,1.6123]
[1734915339886,3.55,3253.6,3252.5,1.6123]
[1734915340203,3.47720482,3253.3,3252.4,1.278394]
[1734915340389,3.07455,3252.5,3252.4,1.278394]
[1734915340683,3.07455,3252.5,3252.4,6.86e-06]
[1734915340979,5.09910482,3252.9,3252.4,6.86e-06]
[1734915340980,3.07446,3252.6,3252.4,6.86e-06]
[1734915341477,3.0743,3252.8,3252.4,6.86e-06]
[1734915341677,4.5377,3253.2,3252.4,6.86e-06]
[1734915341888,1.25958245,3253.0,3252.4,6.86e-06]
[1734915342783,1.25958245,3253.0,3252.5,1.5215]
[1734915342983,1.25958245,3253.4,3252.5,1.5215]
[1734915344047,1.25958245,3253.4,3252.4,6.86e-06]
[1734915344048,3.0,3253.2,3252.4,6.86e-06]
[1734915344207,3.07449,3252.6,3252.4,6.86e-06]
[1734915344807,3.0,3252.5,3252.4,6.86e-06]
[1734915345539,6.47720482,3252.5,3252.4,6.86e-06]
[1734915347592,7.02720482,3252.5,3252.4,6.86e-06]
[1734915347812,6.47720482,3252.5,3252.4,6.86e-06]
[1734915348015,7.5978943,3252.5,3252.4,6.86e-06]
[1734915350572,3.47720482,3252.9,3252.4,6.86e-06]
[1734915350774,1.25958245,3253.0,3252.4,6.86e-06]
[1734915350775,3.07448,3252.6,3252.4,6.86e-06]
[1734915351936,3.0,3252.5,3252.4,6.86e-06]
[1734915352154,6.681998,3252.5,3252.4,6.86e-06]
[1734915353470,3.0,3252.8,3252.4,6.86e-06]
[1734915353768,3.07455,3252.5,3252.4,6.86e-06]
[1734915354974,3.0,3252.8,3252.4,6.86e-06]
[1734915356855,3.07455,3252.5,3252.4,6.86e-06]
[1734915357542,6.07435,3252.8,3252.4,6.86e-06]
[1734915357754,3.0,3252.8,3252.4,1.53850686]
[1734915358582,0.64772048,3252.8,3252.4,1.53850686]
[1734915358880,1.01010048,3253.1,3252.4,1.53850686]
[1734915359351,3.47720482,3253.3,3252.4,1.53850686]
[1734915359683,3.07381,3253.3,3252.4,1.53850686]
[1734915359978,3.07393,3253.2,3252.4,1.53850686]
[1734915360392,7.81028727,3253.7,3252.4,1.53850686]
[1734915360546,3.47720482,3253.3,3252.4,1.53850686]
[1734915360745,0.34772048,3253.2,3252.4,1.53850686]
[1734915361075,3.07402,3253.1,3252.4,1.53850686]
[1734915361257,3.47720482,3253.7,3252.4,1.53850686]
[1734915361457,3.07366,3253.5,3252.4,1.53850686]
[1734915361770,3.07314,3254.0,3252.8,3.07426]
[1734915361979,3.07314,3254.0,3252.9,1.5499]
[1734915362149,3.07314,3254.0,3253.1,1.5729]
[1734915363207,1.25958245,3254.3,3253.1,1.5729]
[1734915363414,3.07333,3253.8,3253.1,1.5729]
[1734915363702,3.47720482,3254.5,3253.2,8.98]
[1734915363909,1.25958245,3255.1,3254.0,3.07311]
[1734915364202,1.25958245,3255.1,3253.8,1.6067]
[1734915364405,1.25958245,3255.1,3254.1,3.07304]
[1734915364701,4.33170245,3255.1,3254.0,1.5228]
[1734915365206,6.54889482,3255.6,3253.6,3.0]
[1734915365207,1.25958245,3255.9,3254.6,8.98]
[1734915365356,1.25958245,3255.9,3254.8,1.5228]
[1734915365561,1.25958245,3255.9,3254.9,1.5228]
[1734915365760,1.25958245,3255.9,3255.2,1.5228]
[1734915366184,1.25958245,3255.9,3255.2,2.14098797]
[1734915366890,3.07097,3256.3,3255.2,2.14098797]
[1734915367201,3.07097,3256.3,3255.3,0.2140988]
[1734915367499,3.07078,3256.5,3255.3,0.2140988]
[1734915367999,1.25958245,3256.6,3255.7,4.6465]
[1734915368204,3.07027,3257.1,3255.8,1.6465]
[1734915368355,3.07027,3257.1,3255.9,1.669797]
[1734915368556,1.25958245,3257.3,3256.0,1.6465]
[1734915368762,1.25958245,3257.3,3256.2,1.6465]
[1734915368960,3.07012,3257.2,3256.2,10.6265]
[1734915369177,3.07022,3257.1,3256.2,10.6265]
[1734915369391,3.07022,3257.1,3256.2,11.75134431]
[1734915369701,1.25958245,3257.3,3256.2,11.75134431]
[1734915369902,3.47720482,3258.0,3256.3,8.98]
[1734915370119,3.07005,3257.3,3256.3,8.98]
[1734915370913,3.0696,3257.8,3256.2,1.6465]
[1734915370914,4.02720482,3257.6,3256.2,1.6465]
[1734915371202,3.07088,3256.4,3256.2,1.6465]
[1734915371410,3.07088,3256.4,3255.5,1.5143]
[1734915371866,3.07095,3256.4,3255.5,1.5143]
[1734915373805,3.07068,3256.6,3255.5,1.5143]
[1734915373964,2.0511,3256.7,3255.5,1.5143]
[1734915374162,3.07128,3256.0,3255.5,1.5143]
[1734915375105,3.0,3257.0,3255.5,1.5143]
[1734915375273,0.55,3257.1,3255.5,1.5143]
[1734915375463,3.07062,3256.7,3255.5,1.5143]
[1734915376474,3.07062,3256.7,3255.9,1.5336]
[1734915376688,3.07061,3256.7,3255.9,1.5336]
[1734915377967,3.07067,3256.7,3255.9,1.5336]
[1734915378516,3.07073,3256.6,3255.9,1.5336]
[1734915379067,3.07031,3257.0,3255.9,1.5336]
[1734915379263,3.07116,3256.1,3255.9,1.5336]
[1734915379613,1.5953,3256.5,3255.3,1.5684]
[1734915379764,8.18987482,3257.2,3255.8,3.07137]
[1734915379969,3.0,3257.3,3255.8,3.07137]
[1734915379970,3.06993,3257.4,3255.9,1.5268]
[1734915380215,3.07017,3257.2,3255.9,1.5268]
[1734915380418,3.07022,3257.1,3255.9,1.5268]
[1734915380580,0.55,3257.4,3256.1,1.5593]
[1734915380785,3.07002,3257.3,3256.1,1.5593]
[1734915382093,3.0,3257.5,3256.2,1.6462]
[1734915382292,3.06964,3257.8,3256.4,1.6462]
[1734915382492,3.06931,3258.1,3256.9,3.0704]
[1734915382824,3.06931,3258.1,3256.5,8.98]
[1734915382825,1.25958245,3258.9,3258.0,3.47720482]
[1734915383035,1.25958245,3258.9,3258.5,3.47720482]
[1734915383320,0.02695064,3258.8,3258.6,1.94882048]
[1734915383528,0.58869553,3258.9,3258.6,1.94882048]
[1734915383678,0.58869553,3259.1,3258.6,1.94882048]
[1734915384809,0.026975,3259.0,3258.6,5.01760048]
[1734915385178,0.026975,3259.0,3258.6,1.94882048]
[1734915385386,0.026975,3259.0,3258.6,1.6011]
[1734915385918,3.0,3259.9,3258.6,1.6011]
[1734915386125,0.02689098,3258.9,3258.6,1.6011]
[1734915386291,3.06805,3259.4,3258.6,1.6011]
[1734915386493,0.02883423,3259.3,3258.6,1.6011]
[1734915386988,3.06835,3259.1,3258.6,1.6011]
[1734915387376,0.03099357,3259.0,3258.6,1.6011]
[1734915387624,3.06853,3258.9,3258.6,1.6011]
[1734915388336,3.06881,3258.6,3258.2,10.6317]
[1734915388835,3.06901,3258.4,3257.8,1.6517]
[1734915389068,3.06901,3258.4,3257.9,0.22731019]
[1734915389329,3.0,3259.2,3258.0,1.5538]
[1734915389645,4.72479,3259.6,3258.0,1.5538]
[1734915389646,3.06846,3259.0,3258.0,1.5538]
[1734915389991,0.02721735,3258.9,3258.0,1.5538]
[1734915390836,3.06919,3258.2,3258.0,1.5538]
[1734915391037,3.06957,3257.8,3257.6,1.594]
[1734915391331,3.0,3258.6,3257.6,1.594]
[1734915391637,0.02694603,3257.7,3257.6,1.594]
[1734915391811,3.06901,3258.4,3257.6,1.594]
[1734915392439,0.02707421,3258.3,3257.6,1.594]
[1734915392637,0.02707421,3258.3,3257.7,0.1594]
[1734915392998,3.06901,3258.4,3257.7,0.1594]
[1734915393496,3.06874,3258.7,3257.7,0.1594]
[1734915393709,0.03098318,3258.6,3257.7,0.1594]
[1734915393913,0.03098318,3258.6,3257.8,0.17534]
[1734915394451,0.03098318,3258.6,3257.6,1.594]
[1734915394666,3.06908,3258.3,3256.8,0.60770865]
[1734915394802,3.06948,3257.9,3256.9,1.5287]
[1734915395005,3.06957,3257.8,3256.9,1.5287]
[1734915395245,3.06957,3257.8,3257.0,0.21364086]
[1734915395645,3.06965,3257.7,3257.0,0.21364086]
[1734915396566,3.06966,3257.7,3256.9,1.5287]
[1734915396848,3.07029,3257.1,3256.9,1.5287]
[1734915397006,3.07044,3256.9,3256.5,1.5022]
[1734915397826,3.0705,3256.8,3256.5,1.5022]
[1734915398051,3.0705,3256.8,3256.5,1.6995932]
[1734915399020,0.55,3257.4,3256.5,1.6995932]
[1734915399325,3.07079,3256.5,3256.1,1.6206]
[1734915399746,3.47720482,3257.3,3256.1,1.6206]
[1734915399946,3.07024,3257.1,3256.1,1.6206]
[1734915400327,3.06984,3257.5,3256.1,4.6917]
[1734915400542,1.5726,3257.7,3256.3,1.6507]
[1734915400543,3.06995,3257.4,3256.3,1.6507]
[1734915400760,3.06999,3257.4,3256.4,0.46507]
[1734915400924,3.07017,3257.2,3256.4,0.46507]
[1734915401265,5.04980482,3257.7,3256.3,1.6507]
[1734915401470,4.64228,3257.7,3256.3,1.6507]
[1734915401765,3.07014,3257.2,3256.3,1.6507]
[1734915403068,1.5726,3257.7,3256.3,1.6507]
[1734915403069,3.07046,3256.9,3256.3,1.6507]
[1734915403269,3.07069,3256.6,3256.3,1.6507]
[1734915403470,3.07053,3256.8,3256.3,1.6507]
[1734915403655,3.0,3257.3,3256.3,1.6507]
[1734915403840,4.5726,3257.7,3256.0,1.6353]
[1734915404202,1.5726,3257.7,3256.4,1.5301]
[1734915404345,0.55,3258.1,3256.6,1.5301]
[1734915404546,3.06956,3257.8,3256.7,1.5301]
[1734915405073,1.24956077,3258.6,3256.9,3.07038]
[1734915405382,3.06938,3258.0,3257.0,1.5163]
[1734915405673,3.47720482,3258.4,3257.0,1.5163]
[1734915405870,3.06989,3257.5,3257.0,1.96793]
[1734915406075,6.13966,3257.5,3256.7,1.5064]
[1734915406277,3.07033,3257.0,3256.7,1.5064]
[1734915409266,3.07039,3257.0,3256.7,1.5064]
[1734915411795,3.07078,3256.5,3256.2,1.5793]
[1734915412088,3.07097,3256.3,3256.2,1.5793]
[1734915412297,3.07097,3256.3,3255.7,1.5793]
[1734915412465,3.07084,3256.5,3255.7,1.5793]
[1734915412795,3.07035,3257.0,3255.7,8.98]
[1734915412974,3.07035,3257.0,3255.8,1.5178]
[1734915413163,3.0704,3256.9,3255.9,1.04978]
[1734915413348,1.24956077,3257.2,3256.0,1.5178]
[1734915413552,4.24956077,3257.2,3256.0,1.5178]
[1734915413779,3.07079,3256.5,3256.0,1.5178]
[1734915414393,6.62021,3257.1,3256.0,1.5178]
[1734915414690,3.07108,3256.2,3256.0,1.5178]
[1734915416208,3.07115,3256.1,3256.0,1.5178]
[1734915416406,3.07127,3256.0,3255.6,1.6266]
[1734915416609,3.07103,3256.3,3255.6,1.6266]
[1734915416794,3.07078,3256.5,3255.7,1.06066]
[1734915416979,3.07055,3256.8,3255.8,1.6266]
[1734915417864,3.0,3257.1,3255.8,1.6266]
[1734915418086,1.24956077,3257.2,3256.0,1.563]
[1734915418087,3.0705,3256.8,3256.0,1.563]
[1734915418411,3.07059,3256.7,3256.1,0.18422745]
[1734915418615,3.0704,3256.9,3256.1,0.18422745]
[1734915418813,3.0,3257.3,3256.2,1.563]
[1734915418981,3.07052,3256.8,3256.2,1.563]
[1734915419228,3.07052,3256.8,3256.3,0.23588166]
[1734915419497,3.07052,3256.8,3256.2,1.563]
[1734915419809,0.55,3257.3,3256.2,1.563]
[1734915419993,3.47720482,3257.2,3256.2,1.563]
[1734915420166,3.07062,3256.7,3256.2,1.563]
[1734915420366,3.47720482,3257.2,3256.2,1.563]
[1734915420367,3.07069,3256.6,3256.2,1.563]
[1734915420600,3.0708,3256.5,3256.2,1.563]
[1734915420798,3.07038,3257.0,3255.7,4.67409392]
[1734915420799,1.5394,3256.8,3255.8,1.5115]
[1734915420980,3.07134,3255.9,3255.8,1.5115]
[1734915421203,3.07115,3256.2,3255.8,1.5115]
[1734915422299,3.07075,3256.6,3255.8,1.5115]
[1734915422505,3.07126,3256.0,3255.8,1.5115]
[1734915422709,3.07154,3255.7,3255.2,1.6216]
[1734915422868,3.07154,3255.7,3255.3,0.16216]
[1734915423090,3.07133,3256.0,3255.3,0.16216]
[1734915423701,3.0713,3256.0,3255.3,0.16216]
[1734915423906,3.07136,3255.9,3255.3,0.16216]
[1734915424534,3.07145,3255.8,3255.3,0.16216]
[1734915424736,3.07191,3255.3,3254.8,10.5571]
[1734915425036,3.07174,3255.5,3254.8,10.5571]
[1734915425390,3.07192,3255.3,3254.8,10.5571]
[1734915425597,3.07178,3255.5,3254.8,11.67466992]
[1734915425804,4.5281,3256.3,3254.9,1.6241]
[1734915426035,3.07144,3255.9,3254.9,1.6241]
[1734915426261,3.07172,3255.5,3254.9,1.6241]
[1734915426406,3.07172,3255.5,3255.0,1.45157499]
[1734915426605,3.07151,3255.8,3255.0,1.45157499]
[1734915426810,2.86496077,3256.6,3255.1,1.6241]
[1734915427035,1.6154,3256.6,3255.3,1.6241]
[1734915427236,3.07097,3256.3,3255.3,1.6241]
[1734915427441,3.07097,3256.3,3255.4,1.06041]
[1734915427636,3.07097,3256.3,3255.5,1.6241]
[1734915428948,3.07107,3256.2,3255.5,1.6241]
[1734915429152,3.07107,3256.2,3255.5,2.22608281]
[1734915429453,3.07059,3256.7,3255.6,1.541]
[1734915429624,3.07059,3256.7,3255.8,1.541]
[1734915430325,1.24956077,3257.2,3255.9,10.5332]
[1734915430551,1.24956077,3257.2,3256.3,3.07092]
[1734915430732,1.24956077,3257.2,3256.6,1.5532]
[1734915430936,3.07005,3257.3,3256.7,1.11590456]
[1734915431128,3.06993,3257.4,3256.6,1.5532]
[1734915431432,3.07068,3256.6,3256.3,1.5308]
[1734915431664,3.47720482,3257.2,3255.7,10.5108]
[1734915431665,3.07087,3256.4,3255.7,10.5108]
[1734915431968,3.07115,3256.2,3255.7,1.5308]
[1734915432171,3.07121,3256.1,3255.7,1.5308]
[1734915432485,3.07121,3256.1,3255.7,2.58188]
[1734915432629,3.07097,3256.3,3255.7,2.58188]
[1734915433773,3.07107,3256.2,3255.7,2.58188]
[1734915433959,3.47720482,3256.8,3255.7,2.58188]
[1734915434362,3.07059,3256.7,3255.7,2.58188]
[1734915434566,3.07104,3256.3,3255.7,2.58188]
[1734915434874,3.0711,3256.2,3255.8,0.258188]
[1734915436954,1.24956077,3256.8,3255.8,0.258188]
[1734915437141,3.0708,3256.5,3255.8,0.258188]
[1734915437336,3.0709,3256.4,3255.8,0.258188]
[1734915437952,1.24956077,3256.7,3255.8,0.258188]
[1734915438174,3.07107,3256.2,3255.8,0.258188]
[1734915438440,3.07111,3256.2,3255.8,0.258188]
[1734915438634,3.07116,3256.1,3255.8,0.258188]
[1734915440188,3.07144,3255.8,3255.7,1.5308]
[1734915442294,1.24956077,3256.4,3255.7,1.5308]
[1734915442678,1.24956077,3256.2,3255.7,1.5308]
[1734915443493,1.24956077,3256.2,3255.8,0.27985468]
[1734915444078,3.07081,3256.5,3255.7,1.5308]
[1734915444375,3.07081,3256.5,3255.8,0.60500397]
[1734915444554,3.07081,3256.5,3255.9,9.1935804]
[1734915444880,3.07107,3256.2,3255.9,9.25986507]
[1734915445270,3.07087,3256.5,3255.9,9.25986507]
[1734915445470,3.07087,3256.5,3255.9,8.98]
[1734915445789,4.32027077,3256.6,3256.0,1.5523]
[1734915446100,4.32027077,3256.6,3256.0,1.83214855]
[1734915446101,3.0708,3256.5,3256.0,1.83214855]
[1734915446389,1.24956077,3256.6,3256.1,1.08121486]
[1734915447075,3.07094,3256.4,3256.0,1.5523]
[1734915447272,3.07097,3256.3,3256.0,1.5523]
[1734915447843,3.07088,3256.4,3256.0,1.5523]
[1734915448040,3.07097,3256.3,3256.0,1.5523]
[1734915449346,1.24956077,3256.7,3256.0,1.5523]
[1734915449506,3.07115,3256.1,3256.0,1.5523]
[1734915450113,4.24956077,3256.7,3256.0,1.5523]
[1734915450417,1.24956077,3256.7,3256.0,1.5523]
[1734915450600,1.24956077,3256.7,3256.2,1.5495]
[1734915450990,1.24956077,3256.7,3256.2,2.60245]
[1734915451808,4.31988077,3257.0,3256.2,11.58245]
[1734915452155,1.24956077,3257.0,3256.2,11.58245]
[1734915452388,3.07044,3256.9,3256.2,11.58245]
[1734915452905,3.07069,3256.6,3256.2,10.5295]
[1734915453078,3.0708,3256.5,3256.2,10.5295]
[1734915453402,3.07097,3256.3,3256.2,1.5495]
[1734915453700,3.07055,3256.8,3255.6,10.6406]
[1734915453858,3.07131,3256.0,3255.6,10.6406]
[1734915454059,3.07131,3256.0,3255.7,1.06406]
[1734915454673,3.07133,3256.0,3255.7,1.06406]
[1734915455182,1.24956077,3256.2,3255.7,1.06406]
[1734915455397,3.07134,3255.9,3255.6,10.6406]
[1734915455907,3.0714,3255.9,3255.6,10.6406]
[1734915456359,3.07145,3255.8,3255.6,10.6406]
[1734915456559,3.07145,3255.8,3255.6,1.6606]
[1734915456987,1.24956077,3256.1,3255.6,1.6606]
[1734915457185,1.24956077,3256.1,3255.7,0.16606]
[1734915458135,4.32068077,3256.2,3255.7,0.16606]
[1734915458986,3.07129,3256.0,3255.7,0.16606]
[1734915459208,3.07153,3255.8,3255.6,1.6606]
[1734915459412,3.07106,3256.2,3255.1,1.588]
[1734915459413,3.07163,3255.6,3255.1,1.588]
[1734915460233,3.07163,3255.6,3255.2,0.28004614]
[1734915460906,3.07163,3255.6,3255.3,0.28004614]
[1734915461653,3.07163,3255.6,3255.1,1.588]
[1734915462348,3.072,3255.2,3255.1,1.588]
[1734915462507,3.072,3255.2,3254.7,1.6653]
[1734915463187,1.6237,3255.6,3254.7,1.6653]
[1734915463358,1.6237,3255.6,3254.4,2.94368714]
[1734915463359,2.87387528,3255.4,3254.4,2.94368714]
[1734915463507,3.07266,3254.5,3254.4,1.27838714]
[1734915463829,3.07266,3254.5,3254.0,1.27838714]
[1734915463830,3.07304,3254.1,3254.0,1.27838714]
[1734915464869,1.5483,3254.7,3254.0,1.59798393]
[1734915465007,3.07248,3254.7,3254.1,1.5856]
[1734915465206,1.24956077,3254.4,3254.1,1.5856]
[1734915466351,1.24956077,3255.1,3254.3,1.6017]
[1734915466906,1.24956077,3255.1,3254.7,8.98]
[1734915467112,1.24956077,3255.1,3254.9,1.503]
[1734915467312,1.24956077,3255.5,3254.9,1.503]
[1734915467636,1.24956077,3255.5,3255.0,8.98]
[1734915468927,3.07144,3255.8,3255.0,8.98]
[1734915469128,3.07144,3255.8,3255.1,1.0483]
[1734915473164,1.24956077,3256.0,3254.9,10.483]
[1734915473457,3.07191,3255.3,3254.9,10.483]
[1734915473635,3.07203,3255.2,3254.9,10.483]
[1734915474354,3.07179,3255.5,3254.9,10.483]
[1734915474510,1.24956077,3255.5,3254.9,10.483]
[1734915474713,1.24956077,3255.5,3255.0,1.0483]
[1734915475559,3.07136,3255.9,3255.0,1.0483]
[1734915475771,1.24956077,3256.0,3255.0,1.0483]
[1734915476049,1.24956077,3256.0,3255.1,1.6516]
[1734915476758,4.32065077,3256.2,3255.2,8.98]
[1734915476917,4.32065077,3256.2,3255.3,0.898]
[1734915477113,1.24956077,3256.2,3255.3,0.898]
[1734915477318,3.07128,3256.0,3255.3,0.898]
[1734915478432,3.07131,3256.0,3255.2,10.6083]
[1734915478613,3.07134,3255.9,3255.2,10.6083]
[1734915479253,3.07146,3255.8,3255.2,10.6083]
[1734915479559,3.07172,3255.5,3255.2,1.6283]
[1734915480337,4.63507247,3256.0,3255.2,1.6283]
[1734915480518,3.07136,3255.9,3255.2,1.6283]
[1734915480918,1.24956077,3256.0,3255.2,1.6283]
[1734915481123,3.07175,3255.5,3255.2,1.6283]
[1734915481734,1.24956077,3256.1,3255.2,1.6283]
[1734915481946,1.24956077,3256.1,3255.6,3.07162]
[1734915482131,1.24956077,3256.1,3255.8,1.578]
[1734915482338,1.24956077,3256.1,3255.9,3.07133]
[1734915482536,1.24956077,3256.1,3256.0,10.4842]
[1734915482759,1.24956077,3256.4,3256.0,10.4842]
[1734915482922,1.24956077,3256.4,3256.0,10.76359372]
[1734915483270,1.24956077,3256.4,3256.1,1.07635937]
[1734915484157,1.24956077,3256.4,3256.0,10.4842]
[1734915484470,3.07072,3256.6,3256.0,10.4842]
[1734915484966,1.24956077,3257.2,3256.0,1.5042]
[1734915485169,1.24956077,3257.2,3256.1,1.628]
[1734915485335,1.24956077,3257.2,3256.3,3.0]
[1734915485521,1.24956077,3257.2,3256.4,2.826]
[1734915485735,1.24956077,3257.2,3256.4,3.10512195]
[1734915485933,4.31970077,3257.2,3256.4,3.10512195]
[1734915486174,3.07071,3256.6,3256.4,0.27912195]
[1734915486389,3.48099094,3256.8,3256.2,8.98]
[1734915486587,3.48099094,3256.8,3255.6,1.5092]
[1734915486752,3.07059,3256.7,3255.6,1.5092]
[1734915487097,3.07059,3256.7,3255.6,2.78758714]
[1734915487235,3.07059,3256.7,3255.7,1.17675871]
[1734915487439,3.07085,3256.5,3255.7,1.17675871]
[1734915488060,3.07059,3256.7,3255.7,1.17675871]
[1734915488265,3.07107,3256.2,3255.6,10.4892]
[1734915488439,3.07119,3256.1,3255.6,10.4892]
[1734915489266,1.24956077,3256.9,3255.6,10.4892]
[1734915489670,1.24956077,3256.7,3255.6,10.4892]
[1734915489839,1.24956077,3256.7,3255.7,1.11057017]
[1734915490040,3.07079,3256.5,3255.7,1.11057017]
[1734915490266,3.07087,3256.4,3255.7,1.11057017]
[1734915490542,1.24956077,3256.7,3255.7,1.11057017]
[1734915490744,3.07079,3256.5,3255.7,1.11057017]
[1734915490943,3.07079,3256.5,3255.8,0.57818605]
[1734915491673,3.07067,3256.7,3255.8,0.57818605]
[1734915491849,3.07067,3256.7,3255.9,1.6471]
[1734915492049,4.31997077,3256.9,3255.9,1.6471]